[Event "Fast Chess"]
[Site "ChessKid.com"]
[Date "2020.04.24"]
[Round "3"]
[White "Li, Patrick"]
[Black "Sasse, Gabriel"]
[Result "0-1"]
[ECO "C46"]
[WhiteElo "1095"]
[BlackElo "1252"]
[PlyCount "60"]
[EventDate "2020.??.??"]
[TimeControl "300+10"]
[WhiteClock "0:03:12"]
[BlackClock "0:00:59"]

1. e4 {[%emt 0:00:11]} e5 {[%emt 0:00:10]} 2. Nf3 {[%emt 0:00:11]} Nc6 {
[%emt 0:00:10]} 3. Nc3 {[%emt 0:00:12]} Bc5 {[%emt 0:00:10]} 4. Nxe5 {[%emt 0:
00:14]} h6 {[%emt 0:00:10]} 5. Bc4 $4 {[%emt 0:00:24]} Nxe5 $1 {[%emt 0:00:13]}
6. d4 {[%emt 0:00:14]} Bb6 $4 {[%emt 0:00:14]} 7. dxe5 {[%emt 0:00:11]} Qh4 {
[%emt 0:00:12]} 8. Qf3 {[%emt 0:00:15]} d6 {[%emt 0:00:18]} 9. Qxf7+ {[%emt 0:
00:15]} Kd8 {[%emt 0:00:13]} 10. O-O {[%emt 0:00:17]} Nf6 {[%emt 0:00:15]} 11.
Qxg7 {[%emt 0:00:17]} Rg8 {[%emt 0:00:14]} 12. Bxg8 {[%emt 0:00:18]} Nxg8 {
[%emt 0:00:14]} 13. Qxg8+ {[%emt 0:00:12]} Kd7 {[%emt 0:00:10]} 14. g3 {
[%emt 0:00:32]} Qe7 {[%emt 0:00:16]} 15. Bxh6 {[%emt 0:00:18]} Ba5 {[%emt 0:00:
14]} 16. Bg5 {[%emt 0:00:52]} Qxe5 {[%emt 0:00:13]} 17. Qf7+ {[%emt 0:00:17]}
Kc6 {[%emt 0:00:15]} 18. Bf4 {[%emt 0:00:14]} Qd4 {[%emt 0:00:13]} 19. Be3 {
[%emt 0:00:15]} Qh8 {[%emt 0:00:22]} 20. Rfd1 {[%emt 0:00:22]} Bh3 {[%emt 0:00:
15]} 21. Bd4 {[%emt 0:00:12]} Qh6 {[%emt 0:00:13]} 22. Be3 {[%emt 0:00:13]} Qh8
{[%emt 0:00:13]} 23. Qd5+ {[%emt 0:00:19]} Kd7 {[%emt 0:00:17]} 24. Qxa5 {
[%emt 0:00:13]} Qf8 {[%emt 0:00:13]} 25. Nb5 {[%emt 0:00:17]} Qf3 {[%emt 0:00:
14]} 26. Qxc7+ {[%emt 0:00:20]} Ke6 {[%emt 0:00:11]} 27. Qc4+ {[%emt 0:00:33]}
Kf6 {[%emt 0:00:20]} 28. Qc3+ {[%emt 0:00:14]} Kf7 {[%emt 0:00:13]} 29. Qc4+ {
[%emt 0:00:23]} Kg6 {[%emt 0:00:13]} 30. Qe6+ {[%emt 0:00:16]} Bxe6 {[%emt 0:
00:12] LimeFarActor won by resignation} 0-1

[Event "Fast Chess"]
[Site "ChessKid.com"]
[Date "2020.04.24"]
[Round "3"]
[White "Horvath, Alexander"]
[Black "Halimi, Dorian"]
[Result "1-0"]
[ECO "B01"]
[WhiteElo "1309"]
[BlackElo "1124"]
[PlyCount "61"]
[EventDate "2020.??.??"]
[TimeControl "300+10"]
[WhiteClock "0:02:55"]
[BlackClock "0:02:41"]

1. e4 {[%emt 0:00:11]} d5 {[%emt 0:00:12]} 2. exd5 {[%emt 0:00:11]} Qxd5 {
[%emt 0:00:10]} 3. Nc3 {[%emt 0:00:11]} Qe5+ {[%emt 0:00:16]} 4. Be2 {[%emt 0:
00:13]} Bg4 {[%emt 0:00:12]} 5. d4 {[%emt 0:00:14]} Qh5 {[%emt 0:00:16]} 6.
Bxg4 {[%emt 0:00:14]} Qg6 {[%emt 0:00:18]} 7. Nf3 {[%emt 0:00:15]} Qc6 {
[%emt 0:00:14]} 8. Ne5 {[%emt 0:00:18]} Qxg2 {[%emt 0:00:16]} 9. Rf1 {[%emt 0:
00:14]} Qxh2 {[%emt 0:00:15]} 10. Nd5 {[%emt 0:00:17]} a5 {[%emt 0:00:22]} 11.
Nxc7+ {[%emt 0:00:12]} Kd8 {[%emt 0:00:14]} 12. Nxa8 {[%emt 0:00:10]} f6 {
[%emt 0:00:17]} 13. Nf7+ {[%emt 0:00:11]} Ke8 {[%emt 0:00:11]} 14. Nxh8 {
[%emt 0:00:11]} g6 {[%emt 0:00:14]} 15. Nc7+ {[%emt 0:00:18]} Qxc7 {[%emt 0:00:
17]} 16. Be3 {[%emt 0:00:15]} f5 {[%emt 0:00:11]} 17. Bf3 {[%emt 0:00:21]} h5 {
[%emt 0:00:14]} 18. Qe2 {[%emt 0:00:14]} h4 {[%emt 0:00:11]} 19. O-O-O {
[%emt 0:00:11]} h3 {[%emt 0:00:11]} 20. Nxg6 {[%emt 0:00:21]} h2 {[%emt 0:00:
14]} 21. Nxf8 {[%emt 0:00:11]} Kxf8 {[%emt 0:00:11]} 22. Qd2 {[%emt 0:00:22]}
e5 {[%emt 0:00:19]} 23. dxe5 {[%emt 0:00:17]} Qxe5 {[%emt 0:00:12]} 24. Qd8+ {
[%emt 0:00:13]} Kf7 {[%emt 0:00:13]} 25. Bh5+ {[%emt 0:00:21]} Kg7 {[%emt 0:00:
17]} 26. Bd4 {[%emt 0:00:16]} Qxd4 {[%emt 0:00:20]} 27. Rxd4 {[%emt 0:00:14]}
Kh6 {[%emt 0:00:12]} 28. Qxb8 {[%emt 0:00:15]} Kxh5 {[%emt 0:00:09]} 29. Qxg8 {
[%emt 0:00:11]} b6 {[%emt 0:00:17]} 30. Rd7 {[%emt 0:00:12]} Kh4 {[%emt 0:00:
13]} 31. Rh7# {[%emt 0:00:12] KeenOrangeTeeth won by checkmate} 1-0

[Event "Fast Chess"]
[Site "ChessKid.com"]
[Date "2020.04.26"]
[Round "1"]
[White "Georgiev, Maximilian"]
[Black "Horvath, Alexander"]
[Result "0-1"]
[ECO "C42"]
[WhiteElo "1423"]
[BlackElo "1323"]
[Annotator "Abtauschkombi mit Fesselung"]
[PlyCount "104"]
[EventDate "2020.??.??"]
[TimeControl "300+10"]
[WhiteClock "0:01:40"]
[BlackClock "0:02:48"]

1. e4 {[%emt 0:00:11]} e5 {[%emt 0:00:14]} 2. Nf3 {[%emt 0:00:10]} Nf6 {
[%emt 0:00:13]} 3. Nxe5 {[%emt 0:00:11]} d6 {[%emt 0:00:17]} 4. Nf3 {[%emt 0:
00:12]} Nxe4 {[%emt 0:00:11]} 5. Qe2 {[%emt 0:00:11]} Qe7 {[%emt 0:00:14]} 6.
d3 {[%emt 0:00:13]} Nf6 {[%emt 0:00:23]} 7. Qxe7+ {[%emt 0:00:11]} Bxe7 {
[%emt 0:00:09]} 8. Be2 {[%emt 0:00:10]} O-O {[%emt 0:00:11]} 9. O-O {[%emt 0:
00:10]} Nc6 {[%emt 0:00:13]} 10. Nc3 {[%emt 0:00:10]} b6 {[%emt 0:00:10]} 11.
Bg5 {[%emt 0:00:10]} Bb7 {[%emt 0:00:11]} 12. a3 {[%emt 0:00:16]} Ne5 {[%emt 0:
00:14]} 13. Nxe5 {[%emt 0:00:12]} dxe5 {[%emt 0:00:10]} 14. b4 {[%emt 0:00:15]}
c5 {[%emt 0:00:20]} 15. bxc5 {[%emt 0:00:12]} bxc5 {[%emt 0:00:10]} 16. Rfe1 {
[%emt 0:00:19]} Rae8 {[%emt 0:00:17]} 17. Bd1 {[%emt 0:00:13]} Bd8 {[%emt 0:00:
13]} 18. Nb5 {[%emt 0:00:18]} a6 {[%emt 0:00:19]} 19. Nd6 {[%emt 0:00:12]} Re7
{[%emt 0:00:29]} 20. Nxb7 {[%emt 0:00:11]} Rxb7 {[%emt 0:00:13]} 21. Rxe5 {
[%emt 0:00:11]} h6 {[%emt 0:00:17]} 22. Bxf6 $2 {[%emt 0:00:12]} Bxf6 $1 {
[%emt 0:00:12]} 23. Rxc5 {[%emt 0:00:14]} Bxa1 {[%emt 0:00:11]} 24. Ra5 {
[%emt 0:00:12]} Rb1 {[%emt 0:00:15]} 25. h3 {[%emt 0:00:15]} Rxd1+ {[%emt 0:00:
11]} 26. Kh2 {[%emt 0:00:10]} Be5+ {[%emt 0:00:19]} 27. Rxe5 {[%emt 0:00:11]}
Ra1 {[%emt 0:00:13]} 28. Ra5 {[%emt 0:00:11]} Rc8 {[%emt 0:00:13]} 29. Rxa6 {
[%emt 0:00:13]} Rxc2 {[%emt 0:00:11]} 30. Ra8+ {[%emt 0:00:10]} Kh7 {[%emt 0:
00:12]} 31. d4 {[%emt 0:00:14]} Raa2 {[%emt 0:00:12]} 32. Kg3 {[%emt 0:00:15]}
Rxf2 {[%emt 0:00:13]} 33. Kg4 {[%emt 0:00:11]} Rxg2+ {[%emt 0:00:11]} 34. Kf3 {
[%emt 0:00:12]} Raf2+ {[%emt 0:00:22]} 35. Ke3 {[%emt 0:00:12]} Rf6 {[%emt 0:
00:12]} 36. Ke4 {[%emt 0:00:14]} Re2+ {[%emt 0:00:15]} 37. Kd5 {[%emt 0:00:11]}
Rh2 {[%emt 0:00:15]} 38. Kc5 {[%emt 0:00:12]} Rxh3 {[%emt 0:00:11]} 39. d5 {
[%emt 0:00:11]} g5 {[%emt 0:00:11]} 40. d6 {[%emt 0:00:11]} Rc3+ {[%emt 0:00:
12]} 41. Kd4 {[%emt 0:00:12]} Rh3 {[%emt 0:00:22]} 42. d7 {[%emt 0:00:12]} Rd6+
{[%emt 0:00:11]} 43. Ke5 {[%emt 0:00:11]} Rxd7 {[%emt 0:00:10]} 44. a4 {
[%emt 0:00:12]} Rdd3 {[%emt 0:00:13]} 45. Rb8 {[%emt 0:00:14]} Rhe3+ {[%emt 0:
00:14]} 46. Kf5 {[%emt 0:00:12]} Ra3 {[%emt 0:00:15]} 47. Rb4 {[%emt 0:00:13]}
Reb3 {[%emt 0:00:15]} 48. Rc4 {[%emt 0:00:14]} Rb2 {[%emt 0:00:14]} 49. Rc7 {
[%emt 0:00:20]} Kg7 {[%emt 0:00:13]} 50. Rc6 {[%emt 0:00:15]} Rxa4 {[%emt 0:00:
13]} 51. Rc3 {[%emt 0:00:17]} Rb5+ {[%emt 0:00:14]} 52. Rc5 {[%emt 0:00:14]}
Rxc5# {[%emt 0:00:11] KeenOrangeTeeth won by checkmate} 0-1

[Event "Fast Chess"]
[Site "ChessKid.com"]
[Date "2020.04.26"]
[Round "1"]
[White "Dai, Lana"]
[Black "Li, Tobias"]
[Result "0-1"]
[ECO "C47"]
[WhiteElo "1258"]
[BlackElo "1364"]
[Annotator "Fesselung, typisches Matt in 2"]
[PlyCount "50"]
[EventDate "2020.??.??"]
[TimeControl "300+10"]
[WhiteClock "0:02:58"]
[BlackClock "0:02:52"]

1. e4 {[%emt 0:00:12]} e5 {[%emt 0:00:14]} 2. Nf3 {[%emt 0:00:10]} Nc6 {
[%emt 0:00:13]} 3. Nc3 {[%emt 0:00:11]} Nf6 {[%emt 0:00:12]} 4. a3 {[%emt 0:00:
10]} Bc5 {[%emt 0:00:10]} 5. h3 {[%emt 0:00:11]} a6 {[%emt 0:00:13]} 6. b4 {
[%emt 0:00:14]} Bb6 {[%emt 0:00:12]} 7. Bc4 {[%emt 0:00:12]} O-O {[%emt 0:00:
14]} 8. O-O {[%emt 0:00:11]} h6 {[%emt 0:00:13]} 9. d3 {[%emt 0:00:11]} d6 {
[%emt 0:00:10]} 10. Nd5 {[%emt 0:00:20]} Nxd5 {[%emt 0:00:19]} 11. exd5 {
[%emt 0:00:11]} Nd4 {[%emt 0:00:16]} 12. Nxd4 {[%emt 0:00:17]} Bxd4 {[%emt 0:
00:10]} 13. Ra2 {[%emt 0:00:11]} Qf6 {[%emt 0:00:29]} 14. Qd2 {[%emt 0:00:20]}
Qg6 {[%emt 0:00:12]} 15. Kh1 {[%emt 0:00:28]} Re8 {[%emt 0:00:22]} 16. c3 {
[%emt 0:00:14]} Bb6 {[%emt 0:00:15]} 17. a4 {[%emt 0:00:17]} Ba7 {[%emt 0:00:
13]} 18. b5 {[%emt 0:00:13]} axb5 {[%emt 0:00:12]} 19. Bxb5 {[%emt 0:00:19]}
Bb6 {[%emt 0:00:14]} 20. Bxe8 {[%emt 0:00:15]} Bf5 {[%emt 0:00:16]} 21. Bb5 {
[%emt 0:00:19]} e4 {[%emt 0:00:20]} 22. dxe4 {[%emt 0:00:11]} Bxe4 {[%emt 0:00:
14]} 23. Rg1 {[%emt 0:00:23]} Qf5 {[%emt 0:00:22]} 24. Rf1 $4 {[%emt 0:00:24]}
Qxh3+ $3 {[%emt 0:00:17]} 25. Kg1 {[%emt 0:00:17]} Qxg2# {[%emt 0:00:11]
OnlyHungryKiwi won by checkmate} 0-1

[Event "Fast Chess"]
[Site "ChessKid.com"]
[Date "2020.04.26"]
[Round "2"]
[White "Li, Tobias"]
[Black "Horvath, Alexander"]
[Result "1/2-1/2"]
[ECO "C42"]
[WhiteElo "1363"]
[BlackElo "1324"]
[Annotator "Matt in 1"]
[PlyCount "132"]
[EventDate "2020.??.??"]
[TimeControl "300+10"]
[WhiteClock "0:00:18"]
[BlackClock "0:00:53"]

1. e4 {[%emt 0:00:10]} e5 {[%emt 0:00:11]} 2. Nf3 {[%emt 0:00:10]} Nf6 {
[%emt 0:00:11]} 3. Nxe5 {[%emt 0:00:13]} d6 {[%emt 0:00:11]} 4. Nf3 {[%emt 0:
00:10]} Nxe4 {[%emt 0:00:11]} 5. d3 {[%emt 0:00:10]} Nf6 {[%emt 0:00:11]} 6.
Nc3 {[%emt 0:00:10]} Qe7+ {[%emt 0:00:13]} 7. Qe2 {[%emt 0:00:12]} Nc6 {
[%emt 0:00:12]} 8. h3 {[%emt 0:00:15]} Bd7 {[%emt 0:00:11]} 9. Bg5 {[%emt 0:00:
11]} O-O-O {[%emt 0:00:11]} 10. Qxe7 {[%emt 0:00:19]} Bxe7 {[%emt 0:00:12]} 11.
O-O-O {[%emt 0:00:10]} h6 {[%emt 0:00:16]} 12. Bh4 {[%emt 0:00:11]} g5 {
[%emt 0:00:11]} 13. Bg3 {[%emt 0:00:11]} Nh5 {[%emt 0:00:15]} 14. Bh2 {[%emt 0:
00:13]} f6 {[%emt 0:00:20]} 15. g4 {[%emt 0:00:11]} Nf4 {[%emt 0:00:12]} 16.
Bxf4 {[%emt 0:00:23]} gxf4 {[%emt 0:00:12]} 17. Re1 {[%emt 0:00:11]} Rde8 {
[%emt 0:00:13]} 18. d4 {[%emt 0:00:11]} h5 {[%emt 0:00:16]} 19. Bb5 {[%emt 0:
00:23]} hxg4 {[%emt 0:00:14]} 20. hxg4 {[%emt 0:00:11]} Rxh1 {[%emt 0:00:13]}
21. Rxh1 {[%emt 0:00:11]} Bxg4 {[%emt 0:00:11]} 22. Nd2 {[%emt 0:00:17]} a6 {
[%emt 0:00:16]} 23. Bc4 {[%emt 0:00:13]} Nxd4 {[%emt 0:00:24]} 24. Rh4 {
[%emt 0:00:13]} Bd7 {[%emt 0:00:19]} 25. Rxf4 {[%emt 0:00:13]} Nc6 {[%emt 0:00:
11]} 26. Re4 {[%emt 0:00:24]} f5 {[%emt 0:00:14]} 27. Re1 {[%emt 0:00:14]} Kb8
{[%emt 0:00:15]} 28. Bf7 {[%emt 0:00:16]} Rf8 {[%emt 0:00:24]} 29. Rxe7 {
[%emt 0:00:12]} Nxe7 {[%emt 0:00:11]} 30. Bb3 {[%emt 0:00:15]} Bb5 {[%emt 0:00:
18]} 31. Nxb5 {[%emt 0:00:15]} axb5 {[%emt 0:00:10]} 32. Nf3 {[%emt 0:00:12]}
Rh8 {[%emt 0:00:18]} 33. Nd4 {[%emt 0:00:13]} c5 {[%emt 0:00:19]} 34. Nxb5 {
[%emt 0:00:13]} f4 {[%emt 0:00:18]} 35. Nxd6 {[%emt 0:00:12]} Rh1+ {[%emt 0:00:
19]} 36. Kd2 {[%emt 0:00:11]} Rh8 {[%emt 0:00:17]} 37. Ne4 {[%emt 0:00:20]} f3
{[%emt 0:00:17]} 38. Nxc5 {[%emt 0:00:12]} Rh2 {[%emt 0:00:18]} 39. Ke3 {
[%emt 0:00:12]} Rh3 {[%emt 0:00:23]} 40. c4 {[%emt 0:00:33]} Nf5+ {[%emt 0:00:
16]} 41. Kf4 {[%emt 0:00:12]} Nd4 {[%emt 0:00:15]} 42. Nd7+ {[%emt 0:00:14]}
Kc7 {[%emt 0:00:13]} 43. Ne5 {[%emt 0:00:13]} Nxb3 {[%emt 0:00:21]} 44. axb3 {
[%emt 0:00:12]} Rh8 {[%emt 0:00:13]} 45. Nxf3 {[%emt 0:00:12]} Rf8+ {[%emt 0:
00:12]} 46. Ke3 {[%emt 0:00:13]} Re8+ {[%emt 0:00:11]} 47. Kd3 {[%emt 0:00:12]}
Rd8+ {[%emt 0:00:12]} 48. Kc3 {[%emt 0:00:10]} Rh8 {[%emt 0:00:12]} 49. Nd2 {
[%emt 0:00:18]} Rh3+ {[%emt 0:00:13]} 50. Kb4 {[%emt 0:00:15]} Rh2 {[%emt 0:00:
15]} 51. Ne4 {[%emt 0:00:11]} b5 {[%emt 0:00:19]} 52. Kxb5 {[%emt 0:00:19]}
Rh5+ {[%emt 0:00:12]} 53. Kb4 {[%emt 0:00:11]} Re5 {[%emt 0:00:16]} 54. Nc3 {
[%emt 0:00:14]} Rf5 {[%emt 0:00:17]} 55. Nd1 {[%emt 0:00:12]} Rh5 {[%emt 0:00:
14]} 56. Ka3 {[%emt 0:00:14]} Rh1 {[%emt 0:00:11]} 57. Nc3 {[%emt 0:00:14]} Rf1
{[%emt 0:00:12]} 58. Ne4 {[%emt 0:00:11]} Re1 {[%emt 0:00:14]} 59. Nc3 {
[%emt 0:00:16]} Kb6 {[%emt 0:00:13]} 60. Nd5+ {[%emt 0:00:30]} Ka5 {[%emt 0:00:
11]} 61. Nc3 $4 {[%emt 0:00:10]} Rf1 {[%emt 0:00:14]} 62. b4+ {[%emt 0:00:17]}
Ka6 {[%emt 0:00:12]} 63. Ne4 {[%emt 0:00:14]} Re1 {[%emt 0:00:16]} 64. Nc3 {
[%emt 0:00:12]} Rf1 {[%emt 0:00:13]} 65. Ne4 {[%emt 0:00:12]} Re1 {[%emt 0:00:
10]} 66. Nc3 {[%emt 0:00:11]} Rf1 {[%emt 0:00:10] Game drawn by repetition}
1/2-1/2

[Event "Fast Chess"]
[Site "ChessKid.com"]
[Date "2020.04.26"]
[Round "2"]
[White "Li, Patrick"]
[Black "Georgiev, Maximilian"]
[Result "0-1"]
[ECO "C55"]
[WhiteElo "1098"]
[BlackElo "1425"]
[Annotator "Fesselung"]
[PlyCount "78"]
[EventDate "2020.??.??"]
[TimeControl "300+10"]
[WhiteClock "0:02:06"]
[BlackClock "0:00:32"]

1. e4 {[%emt 0:00:11]} e5 {[%emt 0:00:10]} 2. Nf3 {[%emt 0:00:10]} Nc6 {
[%emt 0:00:10]} 3. Nc3 {[%emt 0:00:11]} Nf6 {[%emt 0:00:11]} 4. Bc4 {[%emt 0:
00:13]} Be7 {[%emt 0:00:11]} 5. Ng5 {[%emt 0:00:14]} O-O {[%emt 0:00:11]} 6.
Nxf7 {[%emt 0:00:13]} Rxf7 {[%emt 0:00:10]} 7. Bxf7+ {[%emt 0:00:11]} Kxf7 {
[%emt 0:00:10]} 8. O-O {[%emt 0:00:12]} d6 {[%emt 0:00:11]} 9. h3 {[%emt 0:00:
15]} Kg8 {[%emt 0:00:11]} 10. Qe2 {[%emt 0:00:19]} d5 {[%emt 0:00:12]} 11. exd5
{[%emt 0:00:17]} Nxd5 {[%emt 0:00:11]} 12. Qc4 {[%emt 0:00:17]} Be6 {[%emt 0:
00:13]} 13. Nxd5 {[%emt 0:00:27]} Bxd5 {[%emt 0:00:11]} 14. Qg4 {[%emt 0:00:15]
} Kh8 {[%emt 0:00:18]} 15. d3 {[%emt 0:00:24]} Bc5 {[%emt 0:00:20]} 16. Re1 {
[%emt 0:00:24]} a6 {[%emt 0:00:14]} 17. Bg5 {[%emt 0:00:21]} Qf8 {[%emt 0:00:
15]} 18. Rf1 {[%emt 0:00:19]} h6 {[%emt 0:00:17]} 19. Bh4 {[%emt 0:00:17]} Be7
{[%emt 0:00:21]} 20. Bxe7 {[%emt 0:00:14]} Qxe7 {[%emt 0:00:11]} 21. Rfe1 {
[%emt 0:00:23]} Qf7 {[%emt 0:00:14]} 22. Rf1 {[%emt 0:00:14]} Bxa2 {[%emt 0:00:
12]} 23. Qa4 {[%emt 0:00:23]} Be6 {[%emt 0:00:14]} 24. Rfe1 {[%emt 0:00:22]} b5
{[%emt 0:00:14]} 25. Qh4 {[%emt 0:00:21]} Nd4 {[%emt 0:00:27]} 26. Rac1 {
[%emt 0:00:21]} Qg6 {[%emt 0:00:13]} 27. Qe7 {[%emt 0:00:16]} Nf3+ $1 {[%emt 0:
00:16]} 28. Kf1 {[%emt 0:00:15]} Nxe1 {[%emt 0:00:16]} 29. Rxe1 {[%emt 0:00:16]
} Bd5 {[%emt 0:00:20]} 30. g3 {[%emt 0:00:19]} Qh5 {[%emt 0:00:16]} 31. h4 {
[%emt 0:00:17]} Qf3 {[%emt 0:00:19]} 32. c3 {[%emt 0:00:39]} Qg2+ {[%emt 0:00:
14]} 33. Ke2 {[%emt 0:00:10]} Rc8 {[%emt 0:00:24]} 34. Kd1 {[%emt 0:00:14]}
Qxf2 {[%emt 0:00:17]} 35. Rxe5 {[%emt 0:00:12]} Bf3+ {[%emt 0:00:13]} 36. Kc1 {
[%emt 0:00:13]} Qxg3 {[%emt 0:00:21]} 37. Qd7 {[%emt 0:00:13]} Qxe5 {[%emt 0:
00:18]} 38. Qxc8+ {[%emt 0:00:15]} Kh7 {[%emt 0:00:11]} 39. Qxc7 {[%emt 0:00:
14]} Qxc7 {[%emt 0:00:12] TallSnazzyBall won by resignation} 0-1

[Event "Fast Chess"]
[Site "ChessKid.com"]
[Date "2020.04.26"]
[Round "3"]
[White "Li, Patrick"]
[Black "Li, Tobias"]
[Result "0-1"]
[ECO "C55"]
[WhiteElo "1095"]
[BlackElo "1366"]
[PlyCount "120"]
[EventDate "2020.??.??"]
[TimeControl "300+10"]
[WhiteClock "0:02:17"]
[BlackClock "0:01:08"]

1. e4 {[%emt 0:00:12]} e5 {[%emt 0:00:10]} 2. Nf3 {[%emt 0:00:10]} Nc6 {
[%emt 0:00:10]} 3. Nc3 {[%emt 0:00:10]} Nf6 {[%emt 0:00:11]} 4. Bc4 {[%emt 0:
00:11]} Bc5 {[%emt 0:00:10]} 5. Ng5 {[%emt 0:00:12]} O-O {[%emt 0:00:10]} 6.
Nxf7 {[%emt 0:00:11]} Rxf7 {[%emt 0:00:09]} 7. Bxf7+ {[%emt 0:00:13]} Kxf7 {
[%emt 0:00:09]} 8. h3 {[%emt 0:00:15]} d6 {[%emt 0:00:10]} 9. d3 {[%emt 0:00:
13]} Kg8 {[%emt 0:00:11]} 10. O-O {[%emt 0:00:17]} Nd4 {[%emt 0:00:13]} 11. Be3
{[%emt 0:00:21]} a6 {[%emt 0:00:20]} 12. Bg5 {[%emt 0:00:29]} h6 {[%emt 0:00:
13]} 13. Bxf6 {[%emt 0:00:13]} Qxf6 {[%emt 0:00:11]} 14. Nd5 {[%emt 0:00:10]}
Qf7 {[%emt 0:00:18]} 15. c3 {[%emt 0:00:21]} c6 {[%emt 0:00:10]} 16. cxd4 {
[%emt 0:00:17]} cxd5 {[%emt 0:00:10]} 17. dxc5 {[%emt 0:00:13]} dxe4 {[%emt 0:
00:12]} 18. dxe4 {[%emt 0:00:15]} dxc5 {[%emt 0:00:13]} 19. Qd8+ {[%emt 0:00:
14]} Qf8 {[%emt 0:00:14]} 20. Qd5+ {[%emt 0:00:12]} Qf7 {[%emt 0:00:13]} 21.
Qxc5 {[%emt 0:00:14]} Be6 {[%emt 0:00:21]} 22. b3 {[%emt 0:00:26]} Qg6 {
[%emt 0:00:14]} 23. Qxe5 {[%emt 0:00:14]} Bxh3 {[%emt 0:00:13]} 24. Qd5+ {
[%emt 0:00:22]} Kh7 {[%emt 0:00:12]} 25. g3 {[%emt 0:00:20]} Bxf1 {[%emt 0:00:
11]} 26. Kxf1 {[%emt 0:00:12]} Re8 {[%emt 0:00:17]} 27. Re1 {[%emt 0:00:14]}
Qc6 {[%emt 0:00:25]} 28. Qf5+ {[%emt 0:00:21]} Kh8 {[%emt 0:00:11]} 29. Qg4 {
[%emt 0:00:22]} Qb5+ {[%emt 0:00:15]} 30. Kg1 {[%emt 0:00:13]} Qa5 {[%emt 0:00:
14]} 31. Re3 {[%emt 0:00:15]} Qxa2 {[%emt 0:00:14]} 32. e5 {[%emt 0:00:13]} Qa5
{[%emt 0:00:11]} 33. e6 {[%emt 0:00:11]} Qc7 {[%emt 0:00:14]} 34. e7 {[%emt 0:
00:12]} Rxe7 {[%emt 0:00:12]} 35. Rxe7 {[%emt 0:00:16]} Qxe7 {[%emt 0:00:10]}
36. Qc4 {[%emt 0:00:13]} Qe1+ {[%emt 0:00:13]} 37. Kg2 {[%emt 0:00:11]} Qe8 {
[%emt 0:00:40]} 38. Qc7 {[%emt 0:00:21]} Qc6+ {[%emt 0:00:22]} 39. Qxc6 {
[%emt 0:00:25]} bxc6 {[%emt 0:00:12]} 40. Kf3 {[%emt 0:00:12]} Kg8 {[%emt 0:00:
10]} 41. Ke3 {[%emt 0:00:09]} Kf7 {[%emt 0:00:10]} 42. Kd3 {[%emt 0:00:09]} Ke6
{[%emt 0:00:10]} 43. Kc3 {[%emt 0:00:09]} Kd6 {[%emt 0:00:10]} 44. Kb4 {
[%emt 0:00:09]} Kc7 {[%emt 0:00:11]} 45. Ka4 {[%emt 0:00:10]} Kb7 {[%emt 0:00:
10]} 46. b4 {[%emt 0:00:09]} Kb6 {[%emt 0:00:12]} 47. b5 {[%emt 0:00:09]} cxb5+
{[%emt 0:00:11]} 48. Kb4 {[%emt 0:00:12]} a5+ {[%emt 0:00:10]} 49. Kb3 {
[%emt 0:00:11]} a4+ {[%emt 0:00:15]} 50. Kb4 {[%emt 0:00:10]} g5 {[%emt 0:00:
12]} 51. f3 {[%emt 0:00:17]} h5 {[%emt 0:00:11]} 52. g4 {[%emt 0:00:12]} h4 {
[%emt 0:00:13]} 53. f4 {[%emt 0:00:12]} gxf4 {[%emt 0:00:10]} 54. g5 {[%emt 0:
00:10]} h3 {[%emt 0:00:10]} 55. g6 {[%emt 0:00:09]} h2 {[%emt 0:00:10]} 56. g7
{[%emt 0:00:09]} h1=Q {[%emt 0:00:12]} 57. g8=Q {[%emt 0:00:12]} Qe1+ {[%emt 0:
00:11]} 58. Ka3 {[%emt 0:00:13]} Qc3+ {[%emt 0:00:11]} 59. Ka2 {[%emt 0:00:12]}
Qb3+ {[%emt 0:00:11]} 60. Ka1 {[%emt 0:00:12]} Qxg8 {[%emt 0:00:11]
OnlyHungryKiwi won by resignation} 0-1